[Event "EWIBCC 2019"]
[Site "Monte-Carlo"]
[Date "2019.11.29"]
[Round "9.3"]
[White "Kosteniuk, Alexandra"]
[Black "Buksa, Nataliya"]
[Result "1-0"]
[ECO "B22"]
[WhiteElo "2483"]
[BlackElo "2410"]
[Annotator "RC"]
[PlyCount "169"]
[EventDate "2019.11.29"]
[EventType "swiss"]
[EventCountry "MNC"]
[SourceTitle "playchess.com"]
[Source "ChessBase"]
[SourceQuality "1"]
[TimeControl "180+2"]

1. e4 {[%emt 0:00:00]} c5 {[%emt 0:00:00]} 2. c3 {[%emt 0:00:00]} Nf6 {[%emt 0:00:00]} 3. e5 {[%emt 0:00:00]} Nd5 {[%emt 0:00:00]} 4. Nf3 {[%emt 0:00:01]} Nc6 {[%emt 0:00:00]} 5. Bc4 {[%emt 0:00:01]} Nb6 6. Bb3 {[%emt 0:03:10]} d5 {[%emt 0:00:02]} 7. exd6 {[%emt 0:00:00]} Qxd6 {[%emt 0:00:01]} 8. O-O {[%emt 0:00:00]} c4 {[%emt 0:00:11]} 9. Bc2 {[%emt 0:00:00]} Bg4 {[%emt 0:00:01]} 10. Qe2 {[%emt 0:00:00]} e6 {[%emt 0:00:12]} 11. Na3 {[%emt 0:00:00]} Qd5 {[%emt 0:00:03]} 12. Be4 {[%emt 0:00:00]} Qc5 {[%emt 0:00:07]} 13. b4 {[%emt 0:00:00]} cxb3 {[%emt 0:00:03]} 14. axb3 {[%emt 0:00:00]} Bd6 {[%emt 0:00:20]} 15. h3 {[%emt 0:00:00]} Bxf3 {[%emt 0:00:13]} 16. Qxf3 {[%emt 0:00:00]} f5 {[%emt 0:00:10]} 17. Bxc6+ {[%emt 0:00:00]} Qxc6 {[%emt 0:00:01]} 18. Qxc6+ {[%emt 0:00:00]} bxc6 {[%emt 0:00:01]} 19. Nc2 {[%emt 0:00:00]} Kd7 {[%emt 0:00:06]} 20. d4 {[%emt 0:00:00]} a5 {[%emt 0:00:08]} 21. c4 {[%emt 0:00:00]} Bc7 {[%emt 0:00:04]} 22. Ne3 {[%emt 0:00:00]} f4 {[%emt 0:00:10]} 23. Ng4 {[%emt 0:00:00]} a4 {[%emt 0:00:00]} 24. bxa4 {[%emt 0:00:00]} Rxa4 {[%emt 0:00:14]} 25. Rxa4 {[%emt 0:00:00]} Nxa4 {[%emt 0:00:01]} 26. Re1 {[%emt 0:00:00]} Nb6 {[%emt 0:00:06]} 27. Ne5+ {[%emt 0:00:00]} Bxe5 {[%emt 0:00:02]} 28. Rxe5 {[%emt 0:00:00]} Nxc4 {[%emt 0:00:10]} 29. Rc5 {[%emt 0:00:00]} Nb6 {[%emt 0:00:01]} 30. Bxf4 {[%emt 0:00:00]} Ra8 {[%emt 0:00:02]} 31. Rg5 {[%emt 0:00:00]} g6 {[%emt 0:00:01]} 32. h4 {[%emt 0:00:00]} Ra4 {[%emt 0:00:05]} 33. Be5 {[%emt 0:00:00]} Ke7 {[%emt 0:00:22]} 34. h5 {[%emt 0:00:00]} Kf7 {[%emt 0:00:01]} 35. hxg6+ {[%emt 0:00:00]} hxg6 {[%emt 0:00:01]} 36. Rg3 {[%emt 0:00:00]} Nd7 {[%emt 0:00:05]} 37. Rf3+ {[%emt 0:00:00]} Ke7 {[%emt 0:00:01]} 38. Bg7 {[%emt 0:00:00]} Ra5 {[%emt 0:00:22]} 39. Bh6 {[%emt 0:00:07]} Rd5 {[%emt 0:00:04]} 40. Be3 {[%emt 0:00:05]} Nf6 {[%emt 0:00:11]} 41. Rg3 {[%emt 0:00:07]} Kf7 {[%emt 0:00:01]} 42. f3 {[%emt 0:00:00]} Ra5 {[%emt 0:00:10]} 43. Rh3 {[%emt 0:00:03]} Rh5 {[%emt 0:00:02]} 44. Rg3 {[%emt 0:00:05]} Nd5 {[%emt 0:00:06]} 45. Bd2 {[%emt 0:00:10]} Rh4 {[%emt 0:00:01]} 46. f4 {[%emt 0:00:02]} Rh8 {[%emt 0:00:11]} 47. Ra3 {[%emt 0:00:06]} Rb8 {[%emt 0:00:02]} 48. g3 {[%emt 0:00:17]} Rb2 {[%emt 0:00:04]} 49. Be1 {[%emt 0:00:02]} Re2 {[%emt 0:00:02]} 50. Bf2 {[%emt 0:00:02]} Kf6 {[%emt 0:00:02]} 51. Rb3 {[%emt 0:00:02]} Kf5 {[%emt 0:00:01]} 52. Kf1 {[%emt 0:00:14]} Rd2 {[%emt 0:00:01]} 53. Ke1 {[%emt 0:00:01]} Rc2 {[%emt 0:00:00]} 54. Ra3 {[%emt 0:00:04]} Ke4 {[%emt 0:00:01]} 55. Rb3 {[%emt 0:00:01]} Nc3 {[%emt 0:00:01]} 56. Kf1 {[%emt 0:00:03]} Kf3 {[%emt 0:00:01]} 57. Be1 {[%emt 0:00:00]} Ke4 {[%emt 0:00:14]} 58. Rxc3 {[%emt 0:00:02]} Rh2 {[%emt 0:00:07]} 59. Rxc6 {[%emt 0:00:01]} Kf3 {[%emt 0:00:01]} 60. Rc3+ {[%emt 0:00:02]} Ke4 {[%emt 0:00:01]} 61. Bf2 {[%emt 0:00:01]} Rh1+ {[%emt 0:00:02]} 62. Ke2 {[%emt 0:00:01]} Ra1 {[%emt 0:00:01]} 63. Re3+ {[%emt 0:00:01]} Kd5 {[%emt 0:00:02]} 64. Re5+ {[%emt 0:00:01]} Kd6 {[%emt 0:00:00]} 65. Kf3 {[%emt 0:00:00]} Ra2 {[%emt 0:00:02]} 66. Be3 {[%emt 0:00:02]} Ra3 {[%emt 0:00:01]} 67. Kg4 {[%emt 0:00:01]} Ra1 {[%emt 0:00:01]} 68. Kg5 {[%emt 0:00:01]} Ra2 {[%emt 0:00:01]} 69. g4 {[%emt 0:00:01]} Rg2 {[%emt 0:00:01]} 70. Bc1 {[%emt 0:00:08]} Rg1 {[%emt 0:00:03]} 71. Ba3+ {[%emt 0:00:01]} Kd7 {[%emt 0:00:01]} 72. Bc5 {[%emt 0:00:02]} Rg2 {[%emt 0:00:02]} 73. Re3 {[%emt 0:00:01]} Rg1 {[%emt 0:00:03]} 74. Ra3 {[%emt 0:00:01]} Rg2 {[%emt 0:00:02]} 75. Ra6 {[%emt 0:00:01]} Rg3 {[%emt 0:00:02]} 76. Ra7+ {[%emt 0:00:02]} Kc6 {[%emt 0:00:01]} 77. Rg7 {[%emt 0:00:03]} Kd5 {[%emt 0:00:01]} 78. Rxg6 {[%emt 0:00:01]} Rg2 {[%emt 0:00:11]} 79. Kf6 {[%emt 0:00:04]} Ke4 {[%emt 0:00:01]} 80. f5 {[%emt 0:00:01]} exf5 {[%emt 0:00:04]} 81. gxf5 {[%emt 0:00:01]} Ra2 {[%emt 0:00:01]} 82. Ke6 {[%emt 0:00:02]} Ra6+ {[%emt 0:00:01]} 83. Bd6 {[%emt 0:00:01]} Kxd4 {[%emt 0:00:01]} 84. Rg4+ {[%emt 0:00:01]} Ke3 {[%emt 0:00:01]} 85. f6 {[%emt 0:00:01]} 1-0

[Event "EWIBCC 2019"]
[Site "Monte-Carlo"]
[Date "2019.11.29"]
[Round "9.5"]
[White "Socko, Monika"]
[Black "Sebag, Marie"]
[Result "0-1"]
[ECO "D11"]
[WhiteElo "2417"]
[BlackElo "2443"]
[Annotator "NA RC"]
[PlyCount "48"]
[EventDate "2019.11.29"]
[EventType "swiss"]
[EventCountry "MNC"]
[SourceTitle "playchess.com"]
[Source "ChessBase"]
[SourceQuality "1"]
[TimeControl "180+2"]

1. d4 {[%emt 0:00:00]} d5 {[%emt 0:00:00]} 2. c4 {[%emt 0:00:00]} c6 {[%emt 0:00:00]} 3. Nf3 {[%emt 0:00:01]} Nf6 {[%emt 0:00:01]} 4. Nbd2 {[%emt 0:00:02]} Bf5 {[%emt 0:00:07]} 5. Nh4 {[%emt 0:00:10]} Be4 {[%emt 0:00:06]} 6. f3 {[%emt 0:00:23]} Bg6 {[%emt 0:00:02]} 7. Qb3 {[%emt 0:00:06]} Qb6 {[%emt 0:00:07]} 8. Nxg6 {[%emt 0:00:16]} hxg6 {[%emt 0:00:02]} 9. c5 {[%emt 0:00:04]} Qc7 {[%emt 0:00:14]} 10. e4 {[%emt 0:00:09]} dxe4 {[%emt 0:00:09]} 11. Nxe4 {[%emt 0:00:03]} Nxe4 {[%emt 0:00:33]} 12. fxe4 {[%emt 0:00:02]} e5 {[%emt 0:00:01]} 13. Be3 {[%emt 0:00:15]} exd4 {[%emt 0:00:14]} 14. Bxd4 {[%emt 0:00:01]} Nd7 {[%emt 0:00:02]} 15. O-O-O {[%emt 0:00:42]} Nxc5 {[%emt 0:00:12]} 16. Qc2 {[%emt 0:00:01]} Ne6 {[%emt 0:00:06]} 17. Bc4 {[%emt 0:00:09]} Nxd4 {[%emt 0:01:02]} 18. Rxd4 {[%emt 0:00:01]} Be7 {[%emt 0:00:02]} 19. Rf1 {[%emt 0:00:28]} O-O {[%emt 0:00:01]} 20. Qb3 {[%emt 0:00:14]} Bf6 {[%emt 0:00:04]} 21. Rd3 {[%emt 0:00:01]} b5 {[%emt 0:00:03]} 22. e5 {[%emt 0:00:12]} bxc4 {[%emt 0:00:02]} 23. Qxc4 {[%emt 0:00:01]} Qxe5 {[%emt 0:00:01]} 24. Kb1 {[%emt 0:00:03]} Qxb2# {[%emt 0:00:02]} 0-1

[Event "EWIBCC 2019"]
[Site "Monte-Carlo"]
[Date "2019.11.29"]
[Round "9.6"]
[White "Muzychuk, Mariya"]
[Black "Reizniece-Ozola, Dana"]
[Result "1-0"]
[ECO "B90"]
[WhiteElo "2552"]
[BlackElo "2305"]
[Annotator "RC"]
[PlyCount "95"]
[EventDate "2019.11.29"]
[EventType "swiss"]
[EventCountry "MNC"]
[SourceTitle "playchess.com"]
[Source "ChessBase"]
[SourceQuality "1"]
[TimeControl "180+2"]

1. e4 {[%emt 0:00:00]} c5 {[%emt 0:00:00]} 2. Nf3 {[%emt 0:00:00]} d6 {[%emt 0:00:00]} 3. d4 {[%emt 0:00:00]} cxd4 {[%emt 0:00:00]} 4. Nxd4 {[%emt 0:00:01]} Nf6 {[%emt 0:00:01]} 5. Nc3 {[%emt 0:00:01]} a6 {[%emt 0:00:01]} 6. h3 {[%emt 0:00:01]} e5 {[%emt 0:00:01]} 7. Nde2 {[%emt 0:00:08]} Be6 {[%emt 0:00:06]} 8. g4 {[%emt 0:00:07]} Be7 {[%emt 0:00:15]} 9. Bg2 {[%emt 0:00:02]} Qc7 {[%emt 0:00:09]} 10. Ng3 {[%emt 0:00:14]} h6 {[%emt 0:00:19]} 11. Nf5 {[%emt 0:00:14]} Bxf5 {[%emt 0:00:03]} 12. exf5 {[%emt 0:00:01]} Nbd7 {[%emt 0:00:10]} 13. O-O {[%emt 0:00:02]} Nb6 {[%emt 0:00:35]} 14. f4 {[%emt 0:00:04]} exf4 {[%emt 0:00:37]} 15. Bxf4 {[%emt 0:00:04]} Nc4 {[%emt 0:00:04]} 16. Nd5 {[%emt 0:00:35]} Nxd5 {[%emt 0:00:09]} 17. Qxd5 {[%emt 0:00:01]} O-O {[%emt 0:00:34]} 18. Qxb7 {[%emt 0:00:23]} Qc5+ {[%emt 0:00:01]} 19. Kh1 {[%emt 0:00:10]} Bf6 {[%emt 0:00:01]} 20. Qd5 {[%emt 0:00:08]} Rac8 {[%emt 0:00:11]} 21. Rab1 {[%emt 0:00:30]} Rfe8 {[%emt 0:00:04]} 22. Qxc5 Rxc5 {[%emt 0:00:01]} 23. b3 {[%emt 0:00:19]} Ne3 {[%emt 0:00:01]} 24. Rfe1 {[%emt 0:00:09]} Bd4 {[%emt 0:00:04]} 25. c4 {[%emt 0:00:01]} Rcc8 {[%emt 0:00:12]} 26. Bxd6 {[%emt 0:00:04]} Nxg2 {[%emt 0:00:03]} 27. Kxg2 {[%emt 0:00:01]} Red8 {[%emt 0:00:00]} 28. Bf4 {[%emt 0:00:02]} Bc3 {[%emt 0:00:02]} 29. Re2 {[%emt 0:00:06]} a5 {[%emt 0:00:03]} 30. Rc1 {[%emt 0:00:04]} Bb4 {[%emt 0:00:02]} 31. Rcc2 {[%emt 0:00:04]} Ra8 {[%emt 0:00:01]} 32. Bd2 {[%emt 0:00:03]} Bc5 {[%emt 0:00:02]} 33. Bc3 {[%emt 0:00:02]} a4 {[%emt 0:00:00]} 34. b4 {[%emt 0:00:01]} Bb6 {[%emt 0:00:01]} 35. c5 {[%emt 0:00:01]} Bc7 {[%emt 0:00:01]} 36. Be5 {[%emt 0:00:02]} Rac8 {[%emt 0:00:05]} 37. Bxc7 {[%emt 0:00:04]} Rxc7 {[%emt 0:00:00]} 38. c6 {[%emt 0:00:03]} Rb8 {[%emt 0:00:02]} 39. a3 {[%emt 0:00:02]} Rb6 {[%emt 0:00:02]} 40. Re8+ {[%emt 0:00:01]} Kh7 {[%emt 0:00:00]} 41. Ra8 {[%emt 0:00:01]} Rbxc6 {[%emt 0:00:04]} 42. Rxc6 {[%emt 0:00:02]} Rxc6 {[%emt 0:00:00]} 43. Rxa4 {[%emt 0:00:01]} Rc2+ {[%emt 0:00:02]} 44. Kg1 {[%emt 0:00:02]} Rc3 {[%emt 0:00:03]} 45. b5 {[%emt 0:00:02]} Rxh3 {[%emt 0:00:02]} 46. b6 {[%emt 0:00:02]} Rb3 {[%emt 0:00:01]} 47. Rb4 {[%emt 0:00:01]} Rxa3 {[%emt 0:00:02]} 48. b7 {[%emt 0:00:01]} 1-0

[Event "EWIBCC 2019"]
[Site "Monte-Carlo"]
[Date "2019.11.29"]
[Round "9.8"]
[White "Berend, Elvira"]
[Black "Zhukova, Natalia"]
[Result "0-1"]
[ECO "E60"]
[WhiteElo "2349"]
[BlackElo "2323"]
[Annotator "NA"]
[PlyCount "97"]
[EventDate "2019.11.29"]
[EventType "swiss"]
[EventCountry "MNC"]
[SourceTitle "playchess.com"]
[Source "ChessBase"]
[SourceQuality "1"]
[TimeControl "180+2"]

1. d4 {[%emt 0:00:00]} Nf6 {[%emt 0:00:00]} 2. c4 {[%emt 0:00:02]} c5 {[%emt 0:00:00]} 3. d5 {[%emt 0:00:02]} b5 {[%emt 0:00:01]} 4. Nf3 {[%emt 0:00:01]} g6 {[%emt 0:00:02]} 5. g3 {[%emt 0:00:04]} Bg7 {[%emt 0:00:06]} 6. Bg2 {[%emt 0:00:01]} bxc4 {[%emt 0:00:06]} 7. Nc3 {[%emt 0:00:04]} O-O {[%emt 0:00:08]} 8. O-O {[%emt 0:00:06]} d6 {[%emt 0:00:05]} 9. e4 {[%emt 0:00:03]} Nbd7 {[%emt 0:00:05]} 10. Qe2 {[%emt 0:00:13]} a5 {[%emt 0:00:19]} 11. Rd1 {[%emt 0:00:19]} Ba6 {[%emt 0:00:07]} 12. Bf4 {[%emt 0:00:15]} Ng4 {[%emt 0:00:08]} 13. Nd2 {[%emt 0:00:22]} Nge5 {[%emt 0:00:05]} 14. Rab1 {[%emt 0:00:17]} Rb8 {[%emt 0:00:10]} 15. Bg5 {[%emt 0:00:27]} h6 {[%emt 0:00:05]} 16. Be3 {[%emt 0:00:03]} Nd3 {[%emt 0:00:18]} 17. Nf1 {[%emt 0:00:20]} Kh7 {[%emt 0:00:20]} 18. h4 {[%emt 0:00:02]} Nxb2 {[%emt 0:00:25]} 19. Rxb2 {[%emt 0:00:01]} Bxc3 {[%emt 0:00:01]} 20. Rc2 {[%emt 0:00:07]} Bg7 {[%emt 0:00:02]} 21. h5 {[%emt 0:00:03]} Rb6 {[%emt 0:00:28]} 22. Qd2 {[%emt 0:00:13]} Rb2 {[%emt 0:00:22]} 23. Nh2 {[%emt 0:00:20]} c3 {[%emt 0:00:02]} 24. Qc1 {[%emt 0:00:02]} Qb6 {[%emt 0:00:12]} 25. Ng4 {[%emt 0:00:13]} Rxc2 26. Qxc2 {[%emt 0:00:00]} Qb2 {[%emt 0:00:05]} 27. Rc1 {[%emt 0:00:01]} Qxc2 {[%emt 0:00:04]} 28. Rxc2 {[%emt 0:00:01]} gxh5 {[%emt 0:00:01]} 29. Nh2 {[%emt 0:00:01]} Bd3 {[%emt 0:00:03]} 30. Rc1 {[%emt 0:00:01]} c2 {[%emt 0:00:01]} 31. Bf1 {[%emt 0:00:03]} c4 {[%emt 0:00:01]} 32. Nf3 {[%emt 0:00:02]} Bb2 {[%emt 0:00:01]} 33. Ne1 {[%emt 0:00:04]} Bxc1 34. Bxc1 Bxf1 35. Kxf1 {[%emt 0:00:01]} Nc5 {[%emt 0:00:05]} 36. Nxc2 {[%emt 0:00:03]} Nxe4 {[%emt 0:00:01]} 37. Ne3 {[%emt 0:00:03]} c3 {[%emt 0:00:02]} 38. Ke2 {[%emt 0:00:00]} Rb8 {[%emt 0:00:02]} 39. Kd3 {[%emt 0:00:01]} Nxf2+ {[%emt 0:00:02]} 40. Kxc3 {[%emt 0:00:03]} Ne4+ {[%emt 0:00:03]} 41. Kd3 {[%emt 0:00:01]} Nxg3 {[%emt 0:00:01]} 42. Bd2 {[%emt 0:00:00]} h4 {[%emt 0:00:01]} 43. Bxa5 {[%emt 0:00:06]} Ra8 {[%emt 0:00:03]} 44. Bc3 {[%emt 0:00:09]} Rxa2 {[%emt 0:00:02]} 45. Be1 {[%emt 0:00:03]} Kg6 {[%emt 0:00:02]} 46. Nc2 {[%emt 0:00:03]} f5 {[%emt 0:00:05]} 47. Nd4 {[%emt 0:00:01]} f4 {[%emt 0:00:02]} 48. Nf3 {[%emt 0:00:01]} h3 {[%emt 0:00:02]} 49. Kd4 {[%emt 0:00:10]} 0-1

[Event "EWIBCC 2019"]
[Site "Monte-Carlo"]
[Date "2019.11.29"]
[Round "9.9"]
[White "Petrova, Irina"]
[Black "Michna, Marta"]
[Result "1/2-1/2"]
[ECO "C12"]
[WhiteElo "2109"]
[BlackElo "2366"]
[Annotator "NA"]
[PlyCount "82"]
[EventDate "2019.11.29"]
[EventType "swiss"]
[EventCountry "MNC"]
[SourceTitle "playchess.com"]
[Source "ChessBase"]
[SourceQuality "1"]
[TimeControl "180+2"]

1. d4 {[%emt 0:00:00]} Nf6 {[%emt 0:00:00]} 2. Bg5 {[%emt 0:00:00]} e6 {[%emt 0:00:03]} 3. Nc3 {[%emt 0:00:03]} d5 {[%emt 0:00:05]} 4. e4 {[%emt 0:00:01]} Bb4 {[%emt 0:00:06]} 5. e5 {[%emt 0:00:01]} h6 {[%emt 0:00:01]} 6. Bd2 {[%emt 0:00:02]} Bxc3 {[%emt 0:00:04]} 7. bxc3 {[%emt 0:00:01]} Ne4 {[%emt 0:00:09]} 8. Qg4 {[%emt 0:00:02]} g6 {[%emt 0:00:10]} 9. Bd3 {[%emt 0:00:02]} Nxd2 {[%emt 0:00:07]} 10. Kxd2 {[%emt 0:00:01]} c5 {[%emt 0:00:09]} 11. h4 {[%emt 0:00:02]} c4 {[%emt 0:00:07]} 12. Be2 {[%emt 0:00:03]} Nc6 {[%emt 0:00:34]} 13. Rh3 {[%emt 0:00:02]} b5 {[%emt 0:00:29]} 14. a3 {[%emt 0:00:06]} Qa5 {[%emt 0:00:27]} 15. Rb1 {[%emt 0:01:06]} Bd7 {[%emt 0:00:06]} 16. Qf4 {[%emt 0:00:10]} O-O-O {[%emt 0:00:17]} 17. Nf3 {[%emt 0:00:34]} Rh7 {[%emt 0:00:08]} 18. Rhh1 {[%emt 0:00:11]} a6 {[%emt 0:00:18]} 19. a4 {[%emt 0:00:06]} b4 {[%emt 0:00:02]} 20. cxb4 {[%emt 0:00:09]} Nxb4 {[%emt 0:00:01]} 21. c3 {[%emt 0:00:01]} Nc6 {[%emt 0:00:01]} 22. Rhc1 {[%emt 0:00:04]} Qc7 {[%emt 0:00:01]} 23. Ke1 {[%emt 0:00:03]} g5 {[%emt 0:00:02]} 24. hxg5 {[%emt 0:00:03]} hxg5 {[%emt 0:00:02]} 25. Nxg5 {[%emt 0:00:02]} Rh1+ {[%emt 0:00:03]} 26. Kd2 {[%emt 0:00:02]} Rxc1 {[%emt 0:00:02]} 27. Rxc1 {[%emt 0:00:01]} Na5 {[%emt 0:00:01]} 28. Bd1 {[%emt 0:00:03]} Rg8 {[%emt 0:00:05]} 29. Nxf7 {[%emt 0:00:02]} Rxg2 {[%emt 0:00:01]} 30. Nd6+ {[%emt 0:00:02]} Kb8 {[%emt 0:00:01]} 31. Qf8+ {[%emt 0:00:04]} Ka7 {[%emt 0:00:00]} 32. Rb1 {[%emt 0:00:07]} Rh2 {[%emt 0:00:06]} 33. Qf7 {[%emt 0:00:14]} Rg2 {[%emt 0:00:01]} 34. Qf3 {[%emt 0:00:09]} Rh2 {[%emt 0:00:01]} 35. Qf7 {[%emt 0:00:03]} Rg2 {[%emt 0:00:01]} 36. Qf3 {[%emt 0:00:01]} Rh2 {[%emt 0:00:00]} 37. Qf7 {[%emt 0:00:01]} Rg2 {[%emt 0:00:01]} 38. Qf3 {[%emt 0:00:32]} Rh2 39. Qf7 {[%emt 0:00:00]} Rg2 {[%emt 0:00:01]} 40. Qf3 {[%emt 0:00:00]} Rh2 {[%emt 0:00:00]} 41. Qf7 {[%emt 0:00:00]} Rg2 {[%emt 0:00:01]} 1/2-1/2

[Event "EWIBCC 2019"]
[Site "Monte-Carlo"]
[Date "2019.11.29"]
[Round "9.11"]
[White "Babiy, Olga"]
[Black "Unuk, Laura"]
[Result "1-0"]
[ECO "C11"]
[WhiteElo "2249"]
[BlackElo "2298"]
[Annotator "NA"]
[PlyCount "41"]
[EventDate "2019.11.29"]
[EventType "swiss"]
[EventCountry "MNC"]
[SourceTitle "playchess.com"]
[Source "ChessBase"]
[SourceQuality "1"]
[TimeControl "180+2"]

1. e4 {[%emt 0:00:00]} e6 {[%emt 0:00:00]} 2. d4 {[%emt 0:00:00]} d5 {[%emt 0:00:00]} 3. Nc3 {[%emt 0:00:00]} Nf6 {[%emt 0:00:02]} 4. e5 {[%emt 0:00:00]} Nfd7 {[%emt 0:00:01]} 5. f4 {[%emt 0:00:01]} c5 {[%emt 0:00:01]} 6. Nf3 {[%emt 0:00:01]} b6 {[%emt 0:00:06]} 7. Be3 {[%emt 0:00:07]} Be7 {[%emt 0:00:02]} 8. Be2 {[%emt 0:00:06]} Ba6 {[%emt 0:00:07]} 9. O-O {[%emt 0:00:05]} Bxe2 {[%emt 0:00:03]} 10. Nxe2 {[%emt 0:00:02]} cxd4 {[%emt 0:00:11]} 11. Nexd4 {[%emt 0:00:04]} a6 {[%emt 0:00:01]} 12. Rc1 {[%emt 0:00:17]} Qc7 {[%emt 0:00:08]} 13. Qe2 {[%emt 0:00:28]} Nc6 {[%emt 0:00:06]} 14. c4 {[%emt 0:00:03]} Nxd4 {[%emt 0:00:12]} 15. Nxd4 {[%emt 0:00:09]} dxc4 {[%emt 0:00:34]} 16. Rxc4 {[%emt 0:00:02]} Qb7 {[%emt 0:00:01]} 17. Rfc1 {[%emt 0:00:16]} O-O {[%emt 0:00:02]} 18. Rc7 {[%emt 0:00:15]} Qd5 {[%emt 0:00:01]} 19. Nc6 {[%emt 0:00:08]} Bc5 {[%emt 0:00:12]} 20. Bxc5 {[%emt 0:00:08]} Nxc5 {[%emt 0:00:02]} 21. Ne7+ {[%emt 0:00:01]} 1-0

[Event "EWIBCC 2019"]
[Site "Monte-Carlo"]
[Date "2019.11.29"]
[Round "9.13"]
[White "Dornbusch, Tatiana"]
[Black "Belenkaya, Dina"]
[Result "0-1"]
[ECO "D27"]
[WhiteElo "2269"]
[BlackElo "2302"]
[Annotator "NA"]
[PlyCount "28"]
[EventDate "2019.11.29"]
[EventType "swiss"]
[EventCountry "MNC"]
[SourceTitle "playchess.com"]
[Source "ChessBase"]
[SourceQuality "1"]
[TimeControl "180+2"]

1. d4 {[%emt 0:00:00]} d5 {[%emt 0:00:00]} 2. c4 {[%emt 0:00:01]} dxc4 {[%emt 0:00:00]} 3. Nf3 {[%emt 0:00:02]} Nf6 {[%emt 0:00:01]} 4. e3 {[%emt 0:00:02]} e6 {[%emt 0:00:00]} 5. Bxc4 {[%emt 0:00:02]} a6 {[%emt 0:00:01]} 6. a4 {[%emt 0:00:06]} c5 {[%emt 0:00:02]} 7. O-O {[%emt 0:00:04]} Nc6 {[%emt 0:00:01]} 8. Qe2 {[%emt 0:00:03]} Qc7 {[%emt 0:00:01]} 9. Nc3 {[%emt 0:00:08]} Bd6 {[%emt 0:00:01]} 10. dxc5 {[%emt 0:00:30]} Bxc5 {[%emt 0:00:03]} 11. e4 {[%emt 0:00:04]} Ng4 {[%emt 0:00:01]} 12. h3 {[%emt 0:00:13]} Nd4 {[%emt 0:00:01]} 13. hxg4 {[%emt 0:00:35]} Nxe2+ {[%emt 0:00:02]} 14. Bxe2 {[%emt 0:00:02]} b6 {[%emt 0:00:17]} 0-1

[Event "EWIBCC 2019"]
[Site "Monte-Carlo"]
[Date "2019.11.29"]
[Round "9.16"]
[White "Janzelj, Lara"]
[Black "Bodnaruk, Anastasia"]
[Result "0-1"]
[ECO "E92"]
[WhiteElo "2158"]
[BlackElo "2412"]
[Annotator "ChessBase"]
[PlyCount "146"]
[EventDate "2019.11.29"]
[EventType "swiss"]
[EventCountry "MNC"]
[SourceTitle "playchess.com"]
[Source "ChessBase"]
[SourceQuality "1"]
[TimeControl "180+2"]

1. d4 {[%emt 0:00:00]} Nf6 {[%emt 0:00:00]} 2. c4 g6 3. Nc3 {[%emt 0:00:01]} Bg7 {[%emt 0:00:00]} 4. e4 {[%emt 0:00:01]} d6 {[%emt 0:00:00]} 5. Be2 {[%emt 0:00:01]} O-O {[%emt 0:00:02]} 6. Nf3 {[%emt 0:00:01]} e5 {[%emt 0:00:01]} 7. d5 {[%emt 0:00:01]} a5 {[%emt 0:00:01]} 8. Bg5 {[%emt 0:00:01]} h6 {[%emt 0:00:09]} 9. Be3 {[%emt 0:00:00]} Ng4 {[%emt 0:00:14]} 10. Bd2 {[%emt 0:00:01]} f5 {[%emt 0:00:02]} 11. h3 {[%emt 0:00:01]} Nf6 {[%emt 0:00:01]} 12. exf5 {[%emt 0:00:02]} gxf5 {[%emt 0:00:02]} 13. Qc1 {[%emt 0:00:00]} Kh7 {[%emt 0:00:11]} 14. g4 {[%emt 0:00:02]} Ng8 {[%emt 0:00:49]} 15. g5 {[%emt 0:00:32]} h5 {[%emt 0:00:43]} 16. g6+ {[%emt 0:00:14]} Kxg6 {[%emt 0:00:44]} 17. Rg1+ {[%emt 0:00:02]} Kh7 {[%emt 0:00:04]} 18. Ng5+ {[%emt 0:00:02]} Kh8 {[%emt 0:00:02]} 19. Bxh5 {[%emt 0:00:01]} Qf6 {[%emt 0:00:08]} 20. Qd1 {[%emt 0:00:34]} Nh6 {[%emt 0:00:05]} 21. Qf3 {[%emt 0:00:13]} Na6 {[%emt 0:00:08]} 22. Qg3 {[%emt 0:00:16]} Nb4 {[%emt 0:00:06]} 23. O-O-O {[%emt 0:00:04]} e4 {[%emt 0:00:03]} 24. Kb1 {[%emt 0:00:24]} Nd3 {[%emt 0:00:04]} 25. Bc1 {[%emt 0:00:29]} a4 {[%emt 0:00:02]} 26. Ngxe4 {[%emt 0:00:10]} fxe4 {[%emt 0:00:04]} 27. Nxe4 {[%emt 0:00:01]} Qe7 {[%emt 0:00:03]} 28. Rxd3 {[%emt 0:00:08]} Bf5 {[%emt 0:00:02]} 29. f3 {[%emt 0:00:01]} a3 {[%emt 0:00:08]} 30. Bg5 {[%emt 0:00:08]} Qe5 {[%emt 0:00:02]} 31. Qxe5 {[%emt 0:00:03]} dxe5 {[%emt 0:00:00]} 32. Rxa3 {[%emt 0:00:04]} Rxa3 33. bxa3 {[%emt 0:00:01]} Bxh3 {[%emt 0:00:00]} 34. Bxh6 {[%emt 0:00:02]} Bxh6 {[%emt 0:00:01]} 35. Rh1 {[%emt 0:00:01]} Bg2 {[%emt 0:00:01]} 36. Rh2 {[%emt 0:00:04]} Bf1 {[%emt 0:00:00]} 37. Bg4 {[%emt 0:00:02]} Kg7 {[%emt 0:00:01]} 38. Kb2 {[%emt 0:00:03]} Bxc4 {[%emt 0:00:13]} 39. Nc3 {[%emt 0:00:03]} b6 {[%emt 0:00:00]} 40. Be6 {[%emt 0:00:02]} Bf4 {[%emt 0:00:00]} 41. Rg2+ {[%emt 0:00:01]} Kh6 {[%emt 0:00:00]} 42. Ne4 {[%emt 0:00:02]} b5 {[%emt 0:00:00]} 43. Kc3 {[%emt 0:00:03]} c6 {[%emt 0:00:02]} 44. Nf2 {[%emt 0:00:11]} cxd5 {[%emt 0:00:02]} 45. Ng4+ {[%emt 0:00:01]} Kh5 {[%emt 0:00:03]} 46. Kb4 {[%emt 0:00:05]} Ra8 {[%emt 0:00:03]} 47. Nf6+ {[%emt 0:00:02]} Kh6 {[%emt 0:00:01]} 48. Bf5 {[%emt 0:00:04]} Ra4+ {[%emt 0:00:02]} 49. Kc5 {[%emt 0:00:01]} Be3+ {[%emt 0:00:03]} 50. Kc6 {[%emt 0:00:05]} Ra6+ {[%emt 0:00:01]} 51. Kc7 {[%emt 0:00:02]} Rxf6 {[%emt 0:00:01]} 52. Rh2+ {[%emt 0:00:02]} Kg5 {[%emt 0:00:01]} 53. Bc2 {[%emt 0:00:02]} Rxf3 {[%emt 0:00:03]} 54. Rg2+ {[%emt 0:00:01]} Kf6 {[%emt 0:00:01]} 55. Kd6 {[%emt 0:00:00]} e4 {[%emt 0:00:02]} 56. Rg8 {[%emt 0:00:02]} Kf7 {[%emt 0:00:01]} 57. Rg4 {[%emt 0:00:02]} Rf2 {[%emt 0:00:01]} 58. Bd1 {[%emt 0:00:03]} Rxa2 {[%emt 0:00:04]} 59. Ke5 {[%emt 0:00:02]} Rxa3 {[%emt 0:00:02]} 60. Rg2 {[%emt 0:00:02]} Ra1 {[%emt 0:00:05]} 61. Bh5+ {[%emt 0:00:01]} Kf8 {[%emt 0:00:01]} 62. Rg6 {[%emt 0:00:06]} Rf1 {[%emt 0:00:03]} 63. Ra6 {[%emt 0:00:02]} Kg7 {[%emt 0:00:02]} 64. Rg6+ {[%emt 0:00:02]} Kh7 {[%emt 0:00:00]} 65. Ra6 {[%emt 0:00:01]} Bg5 {[%emt 0:00:03]} 66. Bg4 {[%emt 0:00:02]} e3 {[%emt 0:00:03]} 67. Bf5+ {[%emt 0:00:02]} Rxf5+ {[%emt 0:00:02]} 68. Kxf5 {[%emt 0:00:01]} e2 {[%emt 0:00:01]} 69. Ra1 {[%emt 0:00:02]} Bd2 {[%emt 0:00:01]} 70. Rh1+ {[%emt 0:00:01]} Kg7 {[%emt 0:00:01]} 71. Rg1+ {[%emt 0:00:01]} Kf7 {[%emt 0:00:01]} 72. Rh1 {[%emt 0:00:02]} e1=Q {[%emt 0:00:03]} 73. Rh7+ {[%emt 0:00:01]} Kg8 {[%emt 0:00:01]} 0-1